[Event "Titled Tuesday Blitz December 13 Early 2022"]
[White "Akylbekov, Nasyr"]
[Black "Budrewicz, Krzysztof"]
[WhiteFideId "13800353"]
[BlackFideId "1127950"]
[WhiteElo "2310"]
[BlackElo "2188"]
[Result "0-1"]
[Round "02"]
[TimeControl "180+1"]
[Date "2022.12.14"]
[WhiteClock "0:00:25"]
[BlackClock "0:00:27"]

1. e4 {[%clk 0:02:58]}  g6 {[%clk 0:02:59]} 2. d4 {[%clk 0:02:58]}  Bg7 {[%clk 0:03:00]} 3. Nc3 {[%clk 0:02:58]}  c5 {[%clk 0:03:00]} 4. dxc5 {[%clk 0:02:58]}  Bxc3+ {[%clk 0:03:00]} 5. bxc3 {[%clk 0:02:58]}  Nc6 {[%clk 0:03:00]} 6. Bd3 {[%clk 0:02:39]}  Qa5 {[%clk 0:03:00]} 7. Ne2 {[%clk 0:02:39]}  Qxc5 {[%clk 0:02:59]} 8. O-O {[%clk 0:02:39]}  Nf6 {[%clk 0:02:59]} 9. Be3 {[%clk 0:02:33]}  Qa5 {[%clk 0:02:59]} 10. h3 {[%clk 0:02:32]}  d6 {[%clk 0:02:59]} 11. Qd2 {[%clk 0:02:32]}  O-O {[%clk 0:02:59]} 12. Bh6 {[%clk 0:02:31]}  Re8 {[%clk 0:02:58]} 13. f4 {[%clk 0:02:31]}  Qc5+ {[%clk 0:02:55]} 14. Kh2 {[%clk 0:02:29]}  Qh5 {[%clk 0:02:49]} 15. Bg5 {[%clk 0:02:25]}  h6 {[%clk 0:02:35]} 16. Ng3 {[%clk 0:02:22]}  hxg5 {[%clk 0:02:28]} 17. Nxh5 {[%clk 0:02:21]}  Nxh5 {[%clk 0:02:28]} 18. fxg5 {[%clk 0:02:21]}  Ne5 {[%clk 0:02:27]} 19. g4 {[%clk 0:02:20]}  Ng7 {[%clk 0:02:27]} 20. Rab1 {[%clk 0:02:02]}  b6 {[%clk 0:02:26]} 21. Rb5 {[%clk 0:02:02]}  Be6 {[%clk 0:02:26]} 22. Rxe5 {[%clk 0:01:56]}  dxe5 {[%clk 0:02:26]} 23. a4 {[%clk 0:01:52]}  Rac8 {[%clk 0:02:24]} 24. Qf2 {[%clk 0:01:51]}  Rxc3 {[%clk 0:02:19]} 25. a5 {[%clk 0:01:51]}  bxa5 {[%clk 0:01:28]} 26. Qxa7 {[%clk 0:01:50]}  Ra3 {[%clk 0:01:28]} 27. Qc5 {[%clk 0:01:46]}  Ra2 {[%clk 0:01:22]} 28. Qxe5 {[%clk 0:01:46]}  Rc8 {[%clk 0:01:19]} 29. Rf2 {[%clk 0:01:34]}  Ne8 {[%clk 0:01:14]} 30. h4 {[%clk 0:01:27]}  Ng7 {[%clk 0:01:03]} 31. Kg3 {[%clk 0:01:24]}  a4 {[%clk 0:00:58]} 32. c4 {[%clk 0:01:04]}  Rxf2 {[%clk 0:00:48]} 33. Kxf2 {[%clk 0:01:05]}  Ra8 {[%clk 0:00:48]} 34. Bb1 {[%clk 0:00:58]}  a3 {[%clk 0:00:47]} 35. Ba2 {[%clk 0:00:59]}  Bxg4 {[%clk 0:00:43]} 36. Qd5 {[%clk 0:00:49]}  Rb8 {[%clk 0:00:40]} 37. Kg3 {[%clk 0:00:36]}  Be6 {[%clk 0:00:39]} 38. Qa5 {[%clk 0:00:36]}  Nh5+ {[%clk 0:00:37]} 39. Kf3 {[%clk 0:00:34]}  Rc8 {[%clk 0:00:33]} 40. Qxa3 {[%clk 0:00:34]}  Kg7 {[%clk 0:00:28]} 41. Qc3+ {[%clk 0:00:34]}  Kg8 {[%clk 0:00:28]} 42. Bb3 {[%clk 0:00:31]}  Ng7 {[%clk 0:00:28]} 43. Kf4 {[%clk 0:00:30]}  Ne8 {[%clk 0:00:28]} 44. e5 {[%clk 0:00:29]}  Ng7 {[%clk 0:00:28]} 45. Bc2 {[%clk 0:00:24]}  Rxc4+ {[%clk 0:00:26]} 46. Qxc4 {[%clk 0:00:25]}  Bxc4 {[%clk 0:00:27]} 47. Be4 {[%clk 0:00:25]}  Be6 {[%clk 0:00:27]} 0-1


[Site "https://www.chess.com"]

[Event "Titled Tuesday Blitz December 13 Early 2022"]
[White "Andreev, Konstantin"]
[Black "Liu, Casper"]
[WhiteFideId "24239305"]
[BlackFideId "1454153"]
[WhiteElo "2106"]
[BlackElo "2217"]
[Result "1-0"]
[Round "02"]
[TimeControl "180+1"]
[Date "2022.12.14"]
[WhiteClock "0:00:19"]
[BlackClock "0:00:02"]

1. e4 {[%clk 0:03:00]}  c6 {[%clk 0:02:58]} 2. d4 {[%clk 0:03:00]}  d5 {[%clk 0:02:58]} 3. e5 {[%clk 0:03:00]}  Bf5 {[%clk 0:02:56]} 4. Nf3 {[%clk 0:03:00]}  e6 {[%clk 0:02:56]} 5. Be2 {[%clk 0:03:01]}  Nd7 {[%clk 0:02:55]} 6. O-O {[%clk 0:03:01]}  h6 {[%clk 0:02:54]} 7. Nbd2 {[%clk 0:02:59]}  Be7 {[%clk 0:02:52]} 8. Nb3 {[%clk 0:03:00]}  a5 {[%clk 0:02:48]} 9. a4 {[%clk 0:02:59]}  c5 {[%clk 0:02:46]} 10. dxc5 {[%clk 0:02:55]}  Bxc5 {[%clk 0:02:44]} 11. Nxc5 {[%clk 0:02:54]}  Nxc5 {[%clk 0:02:43]} 12. Bb5+ {[%clk 0:02:54]}  Nd7 {[%clk 0:02:43]} 13. Nd4 {[%clk 0:02:52]}  Bg6 {[%clk 0:02:43]} 14. Qg4 {[%clk 0:02:51]}  Ne7 {[%clk 0:02:42]} 15. h4 {[%clk 0:02:46]}  O-O {[%clk 0:02:42]} 16. h5 {[%clk 0:02:41]}  Bf5 {[%clk 0:02:09]} 17. Nxf5 {[%clk 0:02:32]}  Nxf5 {[%clk 0:02:10]} 18. Bf4 {[%clk 0:02:31]}  Rc8 {[%clk 0:02:05]} 19. Bd3 {[%clk 0:02:30]}  f6 {[%clk 0:01:58]} 20. exf6 {[%clk 0:02:25]}  Qxf6 {[%clk 0:01:44]} 21. Rae1 {[%clk 0:02:18]}  e5 {[%clk 0:01:44]} 22. Bd2 {[%clk 0:02:10]}  e4 {[%clk 0:01:43]} 23. Bc3 {[%clk 0:02:09]}  Rxc3 {[%clk 0:01:42]} 24. bxc3 {[%clk 0:02:08]}  exd3 {[%clk 0:01:43]} 25. cxd3 {[%clk 0:02:08]}  Qxc3 {[%clk 0:01:38]} 26. Qf3 {[%clk 0:02:00]}  Qd4 {[%clk 0:01:29]} 27. Re6 {[%clk 0:01:54]}  Ne5 {[%clk 0:01:08]} 28. Qe2 {[%clk 0:01:45]}  Nxd3 {[%clk 0:00:51]} 29. Re8 {[%clk 0:01:23]}  Nf4 {[%clk 0:00:28]} 30. Rxf8+ {[%clk 0:01:16]}  Kxf8 {[%clk 0:00:29]} 31. Qg4 {[%clk 0:01:14]}  Qe4 {[%clk 0:00:25]} 32. f3 {[%clk 0:01:03]}  Ne2+ {[%clk 0:00:15]} 33. Kh2 {[%clk 0:00:52]}  Qe5+ {[%clk 0:00:15]} 34. f4 {[%clk 0:00:51]}  Qe4 {[%clk 0:00:14]} 35. Re1 {[%clk 0:00:46]}  Qxf4+ {[%clk 0:00:13]} 36. Qxf4 {[%clk 0:00:46]}  Nxf4 {[%clk 0:00:14]} 37. Rf1 {[%clk 0:00:47]}  Ke7 {[%clk 0:00:06]} 38. Rxf4 {[%clk 0:00:46]}  Ke6 {[%clk 0:00:07]} 39. g4 {[%clk 0:00:40]}  Ne3 {[%clk 0:00:05]} 40. Kg3 {[%clk 0:00:38]}  Ke5 {[%clk 0:00:04]} 41. Rf8 {[%clk 0:00:38]}  d4 {[%clk 0:00:05]} 42. Kf3 {[%clk 0:00:35]}  Nd5 {[%clk 0:00:03]} 43. Rf7 {[%clk 0:00:31]}  d3 {[%clk 0:00:02]} 44. Rxb7 {[%clk 0:00:29]}  Kd4 {[%clk 0:00:03]} 45. Rxg7 {[%clk 0:00:26]}  Kc3 {[%clk 0:00:02]} 46. Rd7 {[%clk 0:00:25]}  Nb4 {[%clk 0:00:01]} 47. g5 {[%clk 0:00:25]}  d2 {[%clk 0:00:01]} 48. Ke2 {[%clk 0:00:22]}  hxg5 {[%clk 0:00:01]} 49. h6 {[%clk 0:00:21]}  g4 {[%clk 0:00:02]} 50. Rxd2 {[%clk 0:00:19]}  g3 {[%clk 0:00:02]} 51. Rd1 {[%clk 0:00:19]} 1-0


[Site "https://www.chess.com"]

[Event "Titled Tuesday Blitz December 13 Early 2022"]
[White "Aradhya, Garg"]
[Black "Guliev, Logman"]
[WhiteFideId "25006746"]
[BlackFideId "13400061"]
[WhiteElo "2278"]
[BlackElo "2161"]
[Result "1-0"]
[Round "02"]
[TimeControl "180+1"]
[Date "2022.12.14"]
[WhiteClock "0:00:32"]
[BlackClock "0:00:01"]

1. d4 {[%clk 0:03:00]}  d5 {[%clk 0:02:58]} 2. c4 {[%clk 0:03:01]}  e6 {[%clk 0:02:58]} 3. Nf3 {[%clk 0:03:01]}  Nf6 {[%clk 0:02:58]} 4. g3 {[%clk 0:03:01]}  Bb4+ {[%clk 0:02:55]} 5. Bd2 {[%clk 0:03:01]}  Be7 {[%clk 0:02:54]} 6. Bg2 {[%clk 0:03:01]}  O-O {[%clk 0:02:54]} 7. O-O {[%clk 0:03:01]}  c6 {[%clk 0:02:48]} 8. Qc2 {[%clk 0:03:00]}  b6 {[%clk 0:02:44]} 9. Rc1 {[%clk 0:02:59]}  Bb7 {[%clk 0:02:44]} 10. b3 {[%clk 0:02:49]}  a5 {[%clk 0:02:41]} 11. Nc3 {[%clk 0:02:49]}  Na6 {[%clk 0:02:38]} 12. a3 {[%clk 0:02:37]}  Rc8 {[%clk 0:02:37]} 13. e4 {[%clk 0:02:37]}  dxe4 {[%clk 0:02:21]} 14. Nxe4 {[%clk 0:02:33]}  h6 {[%clk 0:02:11]} 15. Ne5 {[%clk 0:02:28]}  Nxe4 {[%clk 0:01:38]} 16. Qxe4 {[%clk 0:02:24]}  Rc7 {[%clk 0:01:26]} 17. Bc3 {[%clk 0:02:10]}  Bf6 {[%clk 0:01:08]} 18. Re1 {[%clk 0:02:03]}  c5 {[%clk 0:01:06]} 19. d5 {[%clk 0:02:02]}  exd5 {[%clk 0:01:04]} 20. cxd5 {[%clk 0:02:02]}  Re8 {[%clk 0:00:54]} 21. Rad1 {[%clk 0:02:01]}  Rce7 {[%clk 0:00:48]} 22. f4 {[%clk 0:01:45]}  Nb8 {[%clk 0:00:36]} 23. Qa4 {[%clk 0:01:38]}  Qd6 {[%clk 0:00:32]} 24. Nc4 {[%clk 0:01:33]}  Rxe1+ {[%clk 0:00:31]} 25. Bxe1 {[%clk 0:01:34]}  Qd7 {[%clk 0:00:26]} 26. Nxb6 {[%clk 0:01:30]}  Qe7 {[%clk 0:00:15]} 27. Bf2 {[%clk 0:01:27]}  Bc3 {[%clk 0:00:05]} 28. d6 {[%clk 0:01:26]}  Qe2 {[%clk 0:00:05]} 29. Rf1 {[%clk 0:00:45]}  Bxg2 {[%clk 0:00:05]} 30. Kxg2 {[%clk 0:00:45]}  Re3 {[%clk 0:00:02]} 31. d7 {[%clk 0:00:44]}  Nxd7 {[%clk 0:00:02]} 32. Qxd7 {[%clk 0:00:42]}  Bd4 {[%clk 0:00:02]} 33. Qc8+ {[%clk 0:00:36]}  Re8 {[%clk 0:00:01]} 34. Qf5 {[%clk 0:00:36]}  g6 {[%clk 0:00:01]} 35. Qd5 {[%clk 0:00:32]} 1-0


[Site "https://www.chess.com"]

[Event "Titled Tuesday Blitz December 13 Early 2022"]
[White "Araujo Sanchez, Josue"]
[Black "Moskalenko, Alexander"]
[WhiteFideId "6416896"]
[BlackFideId "4155351"]
[WhiteElo "2370"]
[BlackElo "2446"]
[Result "0-1"]
[Round "02"]
[TimeControl "180+1"]
[Date "2022.12.14"]
[WhiteClock "0:00:56"]
[BlackClock "0:00:03"]

1. c4 {[%clk 0:03:00]}  e6 {[%clk 0:02:56]} 2. Nc3 {[%clk 0:03:01]}  d5 {[%clk 0:02:56]} 3. cxd5 {[%clk 0:03:02]}  exd5 {[%clk 0:02:56]} 4. d4 {[%clk 0:03:03]}  c6 {[%clk 0:02:55]} 5. Bf4 {[%clk 0:03:02]}  Bd6 {[%clk 0:02:55]} 6. Bxd6 {[%clk 0:03:02]}  Qxd6 {[%clk 0:02:55]} 7. e3 {[%clk 0:03:02]}  Ne7 {[%clk 0:02:56]} 8. Bd3 {[%clk 0:03:03]}  Bf5 {[%clk 0:02:56]} 9. Nge2 {[%clk 0:03:01]}  Nd7 {[%clk 0:02:55]} 10. O-O {[%clk 0:03:01]}  O-O {[%clk 0:02:54]} 11. Rb1 {[%clk 0:02:58]}  a5 {[%clk 0:02:53]} 12. Ng3 {[%clk 0:02:56]}  Bxd3 {[%clk 0:02:27]} 13. Qxd3 {[%clk 0:02:57]}  Qg6 {[%clk 0:02:27]} 14. Qxg6 {[%clk 0:02:54]}  hxg6 {[%clk 0:02:28]} 15. Rfc1 {[%clk 0:02:53]}  Nc8 {[%clk 0:02:21]} 16. Na4 {[%clk 0:02:50]}  Nd6 {[%clk 0:02:21]} 17. Ne2 {[%clk 0:02:49]}  g5 {[%clk 0:02:17]} 18. Rc2 {[%clk 0:02:47]}  f5 {[%clk 0:02:15]} 19. g3 {[%clk 0:02:45]}  Kf7 {[%clk 0:02:15]} 20. Kg2 {[%clk 0:02:34]}  Rh8 {[%clk 0:02:03]} 21. h3 {[%clk 0:02:27]}  Rh6 {[%clk 0:01:39]} 22. Nc5 {[%clk 0:02:25]}  Ke7 {[%clk 0:01:34]} 23. Nxd7 {[%clk 0:02:23]}  Kxd7 {[%clk 0:01:34]} 24. Rbc1 {[%clk 0:02:15]}  Rah8 {[%clk 0:01:30]} 25. Ng1 {[%clk 0:02:14]}  g4 {[%clk 0:01:29]} 26. hxg4 {[%clk 0:01:48]}  Rh2+ {[%clk 0:01:26]} 27. Kf3 {[%clk 0:01:47]}  fxg4+ {[%clk 0:00:48]} 28. Kxg4 {[%clk 0:01:39]}  Ne4 {[%clk 0:00:49]} 29. f4 {[%clk 0:01:24]}  Kd6 {[%clk 0:00:29]} 30. Nf3 {[%clk 0:01:18]}  R2h3 {[%clk 0:00:18]} 31. Rg2 {[%clk 0:01:12]}  Nf6+ {[%clk 0:00:18]} 32. Kf5 {[%clk 0:01:10]}  R3h5+ {[%clk 0:00:17]} 33. Ng5 {[%clk 0:01:10]}  Ne4 {[%clk 0:00:16]} 34. g4 {[%clk 0:01:08]}  Rxg5+ {[%clk 0:00:04]} 35. fxg5 {[%clk 0:01:07]}  Rf8+ {[%clk 0:00:04]} 36. Kg6 {[%clk 0:01:07]}  Rf3 {[%clk 0:00:03]} 37. Kxg7 {[%clk 0:01:05]}  Nxg5 {[%clk 0:00:03]} 38. Rh1 {[%clk 0:01:03]}  Rxe3 {[%clk 0:00:03]} 39. Rh5 {[%clk 0:01:03]}  Ne6+ {[%clk 0:00:02]} 40. Kf7 {[%clk 0:00:59]}  Nxd4 {[%clk 0:00:03]} 41. g5 {[%clk 0:00:58]}  Rf3+ {[%clk 0:00:04]} 42. Ke8 {[%clk 0:00:57]}  Ne6 {[%clk 0:00:03]} 43. Rh6 {[%clk 0:00:56]}  Rf8# {[%clk 0:00:03]} 0-1


[Site "https://www.chess.com"]

[Event "Titled Tuesday Blitz December 13 Early 2022"]
[White "Baches Garcia, Guillermo"]
[Black "Fabris, Alberto"]
[WhiteFideId "2209764"]
[BlackFideId "801348"]
[WhiteElo "2458"]
[BlackElo "2165"]
[Result "1-0"]
[Round "02"]
[TimeControl "180+1"]
[Date "2022.12.14"]
[WhiteClock "0:00:21"]
[BlackClock "0:00:01"]

1. e4 {[%clk 0:03:00]}  c5 {[%clk 0:02:58]} 2. Nf3 {[%clk 0:03:00]}  d6 {[%clk 0:02:59]} 3. d4 {[%clk 0:03:00]}  cxd4 {[%clk 0:02:59]} 4. Nxd4 {[%clk 0:03:01]}  Nf6 {[%clk 0:02:59]} 5. Nc3 {[%clk 0:03:01]}  a6 {[%clk 0:03:00]} 6. Be3 {[%clk 0:03:02]}  e5 {[%clk 0:02:59]} 7. Nb3 {[%clk 0:03:02]}  Be7 {[%clk 0:02:58]} 8. f3 {[%clk 0:03:03]}  Nbd7 {[%clk 0:02:57]} 9. Qd2 {[%clk 0:02:57]}  h5 {[%clk 0:02:55]} 10. Be2 {[%clk 0:02:53]}  Qc7 {[%clk 0:02:55]} 11. Nd5 {[%clk 0:02:48]}  Nxd5 {[%clk 0:02:53]} 12. exd5 {[%clk 0:02:48]}  g6 {[%clk 0:02:44]} 13. c4 {[%clk 0:02:42]}  b6 {[%clk 0:02:38]} 14. Rc1 {[%clk 0:02:39]}  a5 {[%clk 0:02:34]} 15. Na1 {[%clk 0:02:32]}  Nc5 {[%clk 0:02:32]} 16. Nc2 {[%clk 0:02:31]}  Bf5 {[%clk 0:02:28]} 17. Na3 {[%clk 0:02:30]}  Bf6 {[%clk 0:02:16]} 18. Nb5 {[%clk 0:02:27]}  Qd7 {[%clk 0:02:16]} 19. O-O {[%clk 0:02:19]}  Bg7 {[%clk 0:02:10]} 20. Kh1 {[%clk 0:02:07]}  O-O {[%clk 0:02:10]} 21. b3 {[%clk 0:02:05]}  e4 {[%clk 0:02:00]} 22. f4 {[%clk 0:01:54]}  Rfe8 {[%clk 0:01:54]} 23. Nd4 {[%clk 0:01:46]}  Bg4 {[%clk 0:01:49]} 24. Nc6 {[%clk 0:01:36]}  Bxe2 {[%clk 0:01:43]} 25. Qxe2 {[%clk 0:01:36]}  Qg4 {[%clk 0:01:37]} 26. Qd2 {[%clk 0:01:23]}  h4 {[%clk 0:01:27]} 27. h3 {[%clk 0:01:19]}  Qf5 {[%clk 0:01:25]} 28. Rcd1 {[%clk 0:01:10]}  Rac8 {[%clk 0:01:12]} 29. Qf2 {[%clk 0:01:08]}  Qh5 {[%clk 0:01:10]} 30. f5 {[%clk 0:01:03]}  gxf5 {[%clk 0:01:05]} 31. Qxf5 {[%clk 0:01:01]}  Qxf5 {[%clk 0:01:04]} 32. Rxf5 {[%clk 0:01:02]}  Rc7 {[%clk 0:01:02]} 33. Rdf1 {[%clk 0:00:58]}  Rb7 {[%clk 0:00:57]} 34. Rg5 {[%clk 0:00:55]}  Kf8 {[%clk 0:00:56]} 35. Rg4 {[%clk 0:00:53]}  a4 {[%clk 0:00:52]} 36. b4 {[%clk 0:00:45]}  Nd3 {[%clk 0:00:52]} 37. Rxh4 {[%clk 0:00:44]}  Ne5 {[%clk 0:00:50]} 38. Rxe4 {[%clk 0:00:43]}  Nxc4 {[%clk 0:00:46]} 39. Rxc4 {[%clk 0:00:39]}  Rxe3 {[%clk 0:00:45]} 40. Nd8 {[%clk 0:00:38]}  Rd7 {[%clk 0:00:43]} 41. Ne6+ {[%clk 0:00:38]}  Kg8 {[%clk 0:00:43]} 42. Rc8+ {[%clk 0:00:37]}  Kh7 {[%clk 0:00:42]} 43. Ng5+ {[%clk 0:00:37]}  Kg6 {[%clk 0:00:41]} 44. Nf3 {[%clk 0:00:37]}  Be5 {[%clk 0:00:35]} 45. Rc6 {[%clk 0:00:35]}  Kg7 {[%clk 0:00:34]} 46. Rxb6 {[%clk 0:00:34]}  Ra3 {[%clk 0:00:33]} 47. Rf2 {[%clk 0:00:33]}  Rd3 {[%clk 0:00:31]} 48. Nxe5 {[%clk 0:00:31]}  dxe5 {[%clk 0:00:30]} 49. Ra6 {[%clk 0:00:31]}  R3xd5 {[%clk 0:00:29]} 50. Rxa4 {[%clk 0:00:31]}  e4 {[%clk 0:00:06]} 51. b5 {[%clk 0:00:28]}  Rxb5 {[%clk 0:00:05]} 52. Rxe4 {[%clk 0:00:28]}  Rbd5 {[%clk 0:00:05]} 53. Kh2 {[%clk 0:00:28]}  Rd2 {[%clk 0:00:05]} 54. Ree2 {[%clk 0:00:27]}  Rxe2 {[%clk 0:00:05]} 55. Rxe2 {[%clk 0:00:28]}  Ra7 {[%clk 0:00:05]} 56. Kg3 {[%clk 0:00:27]}  Ra4 {[%clk 0:00:05]} 57. Kf3 {[%clk 0:00:27]}  Kg6 {[%clk 0:00:05]} 58. g3 {[%clk 0:00:26]}  f6 {[%clk 0:00:03]} 59. Kf2 {[%clk 0:00:24]}  Kg5 {[%clk 0:00:03]} 60. Kg2 {[%clk 0:00:23]}  Kg6 {[%clk 0:00:03]} 61. Rf2 {[%clk 0:00:23]}  Kg5 {[%clk 0:00:03]} 62. h4+ {[%clk 0:00:23]}  Kg6 {[%clk 0:00:03]} 63. Kh3 {[%clk 0:00:22]}  f5 {[%clk 0:00:03]} 64. Rb2 {[%clk 0:00:21]}  Ra3 {[%clk 0:00:02]} 65. Rb6+ {[%clk 0:00:21]}  Kh5 {[%clk 0:00:01]} 66. Rf6 {[%clk 0:00:21]} 1-0


[Site "https://www.chess.com"]

[Event "Titled Tuesday Blitz December 13 Early 2022"]
[White "Baruch, Liam"]
[Black "Urbina Perez, Juan Antonio"]
[WhiteFideId "14322064"]
[BlackFideId "2217368"]
[WhiteElo "1951"]
[BlackElo "2197"]
[Result "0-1"]
[Round "02"]
[TimeControl "180+1"]
[Date "2022.12.14"]
[WhiteClock "0:00:16"]
[BlackClock "0:00:14"]

1. e4 {[%clk 0:03:00]}  c5 {[%clk 0:02:53]} 2. Nf3 {[%clk 0:03:00]}  d6 {[%clk 0:02:54]} 3. d4 {[%clk 0:03:01]}  cxd4 {[%clk 0:02:54]} 4. Nxd4 {[%clk 0:03:01]}  Nf6 {[%clk 0:02:55]} 5. Nc3 {[%clk 0:03:02]}  Nc6 {[%clk 0:02:56]} 6. Ndb5 {[%clk 0:02:55]}  a6 {[%clk 0:02:50]} 7. Na3 {[%clk 0:02:54]}  g6 {[%clk 0:02:49]} 8. Be2 {[%clk 0:02:49]}  Bg7 {[%clk 0:02:50]} 9. O-O {[%clk 0:02:48]}  O-O {[%clk 0:02:50]} 10. Re1 {[%clk 0:02:47]}  b5 {[%clk 0:02:50]} 11. Nd5 {[%clk 0:02:32]}  Nd7 {[%clk 0:02:44]} 12. c3 {[%clk 0:02:28]}  Bb7 {[%clk 0:02:42]} 13. Nc2 {[%clk 0:02:27]}  Rc8 {[%clk 0:02:38]} 14. Bf1 {[%clk 0:02:25]}  Nc5 {[%clk 0:02:25]} 15. Be3 {[%clk 0:02:06]}  Ne5 {[%clk 0:02:04]} 16. f4 {[%clk 0:01:28]}  Nc4 {[%clk 0:01:59]} 17. Bxc4 {[%clk 0:01:20]}  bxc4 {[%clk 0:02:00]} 18. Bd4 {[%clk 0:01:17]}  Nd3 {[%clk 0:01:54]} 19. Bxg7 {[%clk 0:00:58]}  Kxg7 {[%clk 0:01:51]} 20. Re2 {[%clk 0:00:53]}  Bxd5 {[%clk 0:01:41]} 21. exd5 {[%clk 0:00:51]}  Qb6+ {[%clk 0:01:40]} 22. Nd4 {[%clk 0:00:46]}  Nxf4 {[%clk 0:01:38]} 23. Rxe7 {[%clk 0:00:41]}  Nxd5 {[%clk 0:01:37]} 24. Re2 {[%clk 0:00:39]}  Rfe8 {[%clk 0:01:34]} 25. Kh1 {[%clk 0:00:38]}  Nf4 {[%clk 0:01:31]} 26. Rxe8 {[%clk 0:00:37]}  Rxe8 {[%clk 0:01:32]} 27. Qf3 {[%clk 0:00:36]}  Nd3 {[%clk 0:01:22]} 28. Rf1 {[%clk 0:00:32]}  f5 {[%clk 0:01:22]} 29. Qd5 {[%clk 0:00:28]}  Re5 {[%clk 0:01:12]} 30. Qxc4 {[%clk 0:00:23]}  Nxb2 {[%clk 0:01:11]} 31. Qb3 {[%clk 0:00:17]}  Qxb3 {[%clk 0:01:05]} 32. axb3 {[%clk 0:00:18]}  Nd3 {[%clk 0:01:05]} 33. h3 {[%clk 0:00:18]}  Nc5 {[%clk 0:01:01]} 34. b4 {[%clk 0:00:18]}  Ne4 {[%clk 0:01:01]} 35. Kh2 {[%clk 0:00:16]}  Nxc3 {[%clk 0:01:00]} 36. Rc1 {[%clk 0:00:15]}  Ne2 {[%clk 0:00:54]} 37. Rc7+ {[%clk 0:00:14]}  Kh6 {[%clk 0:00:52]} 38. Nf3 {[%clk 0:00:14]}  Re4 {[%clk 0:00:40]} 39. Rc6 {[%clk 0:00:13]}  Rxb4 {[%clk 0:00:32]} 40. Rxa6 {[%clk 0:00:13]}  d5 {[%clk 0:00:32]} 41. Rd6 {[%clk 0:00:12]}  Nf4 {[%clk 0:00:29]} 42. Ne5 {[%clk 0:00:10]}  Rb2 {[%clk 0:00:26]} 43. Kg3 {[%clk 0:00:10]}  Nxg2 {[%clk 0:00:25]} 44. Rxd5 {[%clk 0:00:10]}  Ne3 {[%clk 0:00:24]} 45. Rd3 {[%clk 0:00:09]}  Nf1+ {[%clk 0:00:21]} 46. Kf3 {[%clk 0:00:09]}  Nh2+ {[%clk 0:00:19]} 47. Kg3 {[%clk 0:00:08]}  Nf1+ {[%clk 0:00:19]} 48. Kf3 {[%clk 0:00:09]}  Nd2+ {[%clk 0:00:20]} 49. Kg3 {[%clk 0:00:08]}  Ne4+ {[%clk 0:00:20]} 50. Kf3 {[%clk 0:00:08]}  Rf2+ {[%clk 0:00:20]} 51. Ke3 {[%clk 0:00:09]}  Rh2 {[%clk 0:00:19]} 52. Kd4 {[%clk 0:00:07]}  Ng5 {[%clk 0:00:19]} 53. h4 {[%clk 0:00:05]}  Rxh4+ {[%clk 0:00:19]} 54. Kd5 {[%clk 0:00:06]}  Re4 {[%clk 0:00:18]} 55. Rc3 {[%clk 0:00:04]}  Re1 {[%clk 0:00:15]} 56. Rc2 {[%clk 0:00:05]}  Rd1+ {[%clk 0:00:13]} 57. Kc5 {[%clk 0:00:04]}  Ne4+ {[%clk 0:00:13]} 58. Kc6 {[%clk 0:00:03]}  Rd6+ {[%clk 0:00:13]} 59. Kc7 {[%clk 0:00:03]}  Re6 {[%clk 0:00:13]} 60. Rh2+ {[%clk 0:00:04]}  Kg7 {[%clk 0:00:13]} 61. Nd7 {[%clk 0:00:05]}  Re7 {[%clk 0:00:12]} 62. Rc2 {[%clk 0:00:05]}  Nf6 {[%clk 0:00:11]} 63. Rd2 {[%clk 0:00:06]}  Rxd7+ {[%clk 0:00:12]} 64. Rxd7+ {[%clk 0:00:06]}  Nxd7 {[%clk 0:00:13]} 65. Kxd7 {[%clk 0:00:07]}  f4 {[%clk 0:00:13]} 66. Ke6 {[%clk 0:00:08]}  f3 {[%clk 0:00:14]} 67. Ke5 {[%clk 0:00:09]}  f2 {[%clk 0:00:15]} 68. Kf4 {[%clk 0:00:10]}  f1=Q+ {[%clk 0:00:16]} 69. Kg4 {[%clk 0:00:11]}  Qf5+ {[%clk 0:00:14]} 70. Kh4 {[%clk 0:00:12]}  g5+ {[%clk 0:00:13]} 71. Kg3 {[%clk 0:00:12]}  Qf4+ {[%clk 0:00:14]} 72. Kg2 {[%clk 0:00:13]}  g4 {[%clk 0:00:14]} 73. Kg1 {[%clk 0:00:14]}  Qg3+ {[%clk 0:00:14]} 74. Kh1 {[%clk 0:00:14]}  Qf3+ {[%clk 0:00:14]} 75. Kg1 {[%clk 0:00:15]}  Qe2 {[%clk 0:00:14]} 76. Kh1 {[%clk 0:00:15]}  g3 {[%clk 0:00:14]} 77. Kg1 {[%clk 0:00:15]}  Qf2+ {[%clk 0:00:14]} 78. Kh1 {[%clk 0:00:16]} 0-1


[Site "https://www.chess.com"]

[Event "Titled Tuesday Blitz December 13 Early 2022"]
[White "Begunov, Konstantin"]
[Black "Rakhmatullaev, Almas"]
[WhiteFideId "4118510"]
[BlackFideId "14205793"]
[WhiteElo "2141"]
[BlackElo "2221"]
[Result "0-1"]
[Round "02"]
[TimeControl "180+1"]
[Date "2022.12.14"]
[WhiteClock "0:01:37"]
[BlackClock "0:00:37"]

1. d4 {[%clk 0:03:00]}  Nf6 {[%clk 0:02:59]} 2. c4 {[%clk 0:03:00]}  g6 {[%clk 0:02:59]} 3. f3 {[%clk 0:03:00]}  Bg7 {[%clk 0:02:59]} 4. e4 {[%clk 0:03:00]}  d6 {[%clk 0:02:59]} 5. Nc3 {[%clk 0:03:00]}  O-O {[%clk 0:02:59]} 6. Be3 {[%clk 0:03:01]}  e5 {[%clk 0:02:55]} 7. Nge2 {[%clk 0:03:00]}  Nfd7 {[%clk 0:02:54]} 8. Qd2 {[%clk 0:03:00]}  Nb6 {[%clk 0:02:49]} 9. b3 {[%clk 0:02:54]}  a5 {[%clk 0:02:50]} 10. a4 {[%clk 0:02:41]}  Nc6 {[%clk 0:02:27]} 11. dxe5 {[%clk 0:02:28]}  Nxe5 {[%clk 0:02:24]} 12. Nd4 {[%clk 0:02:22]}  Qh4+ {[%clk 0:01:46]} 13. Bf2 {[%clk 0:02:15]}  Qe7 {[%clk 0:01:39]} 14. Be2 {[%clk 0:02:09]}  f5 {[%clk 0:01:12]} 15. exf5 {[%clk 0:02:06]}  Bxf5 {[%clk 0:01:09]} 16. Nxf5 {[%clk 0:02:04]}  Rxf5 {[%clk 0:01:06]} 17. O-O {[%clk 0:02:03]}  Raf8 {[%clk 0:01:04]} 18. Rfe1 {[%clk 0:02:02]}  Qf7 {[%clk 0:00:46]} 19. Rad1 {[%clk 0:01:53]}  Kh8 {[%clk 0:00:44]} 20. Ne4 {[%clk 0:01:47]}  Nbd7 {[%clk 0:00:41]} 21. Qxa5 {[%clk 0:01:43]}  Nxf3+ {[%clk 0:00:39]} 22. gxf3 {[%clk 0:01:37]}  Rxa5 {[%clk 0:00:37]} 0-1


[Site "https://www.chess.com"]